Cogmind - Beta 10.2 @@@ ROGUE MODE // 2021.06.15 @ 10:11:32 Player: Exp. Geonium Core Result: Self-destructed Performance ------------- Evolutions (1) 500 Regions Visited (2) 400 Robots Destroyed (5) 25 Value Destroyed (149) 149 Prototype IDs (0) 0 Alien Tech Used (0) 0 Bonus (0) 0 TOTAL SCORE: 1074 Bonus ------- None Cogmind --------- Core Integrity 23/400 Matter 300/300 Energy 100/100 System Corruption 0% Temperature Cool (0) Movement Walking (150) Ox1 Location -9/Materials Parts ------- > --- POWER (1) -------- (None) > --- PROPULSION (2) --- Aluminum Leg > --- UTILITY (4) ------ Small Storage Unit Large Storage Unit > --- WEAPON (2) ------- (None) > --- INVENTORY (12) --- (None) Peak State ------------ > --- POWER ------------ Light Ion Engine > --- PROPULSION ------- Light Treads Light Treads > --- UTILITY ---------- Small Storage Unit Large Storage Unit > --- WEAPON ----------- (None) > --- INVENTORY -------- Light Treads [Rating: 5] Favorites ----------- Power Light Ion Engine Engine Light Ion Engine Propulsion Light Treads Treads Light Treads Leg Aluminum Leg Utility Small Storage Unit Storage Small Storage Unit Protection Light Armor Plating Weapon None Build | -11 -10 -9 ------- Run | Scr Mat Mat Slots Evolved 2 | . . 2 Power . | . . . Propulsion . | . . . Utility 2 | . . 2 Weapon . | . . . Parts Attached 9 | 3 . 6 Power 1 | 1 . . Engine 1 | 1 . . Core . | . . . Reactor . | . . . Propulsion 5 | 2 . 3 Treads 3 | 2 . 1 Leg 2 | . . 2 Wheel . | . . . Hover . | . . . Flight . | . . . Utility 3 | . . 3 Device . | . . . Storage 2 | . . 2 Processor . | . . . Hackware . | . . . Protection 1 | . . 1 Artifact . | . . . Weapon . | . . . Energy Gun . | . . . Energy Cannon . | . . . Ballistic Gun . | . . . Ballistic Cannon . | . . . Launcher . | . . . Special Weapon . | . . . Impact Weapon . | . . . Slashing Weapon . | . . . Piercing Weapon . | . . . Special Melee Weapon . | . . . Unidentified Prototypes . | . . . Parts Lost 6 | . . 6 Power 1 | . . 1 Propulsion 4 | . . 4 Utility 1 | . . 1 Weapon . | . . . Highest Loss Streak 4 | . . 4 Average Slot Usage (%) 43 | . 42 43 Engine 4 | . 14 2 Treads 18 | . 28 16 Leg 2 | . . 3 Storage 14 | . . 17 Protection 3 | . . 3 Naked Turns . | . . . Heaviest Build 23 | 3 3 23 Greatest Support 40 | 40 40 40 Greatest Overweight (x) 1 | . . 1 Average Overweight (x) . | . . . Largest Inventory Capacity 12 | 4 4 12 Average Capacity 8 | 4 4 10 Most Carried 3 | 1 2 3 Average Carried 1 | . 1 1 Final Capacity 12 | 4 4 12 Final Carried 2 | 1 2 . Class Distribution -------------------- 100% | Mutant Dominant Class ---------------- Mutant | -10/Materials Mutant | -9/Materials Resources | -11 -10 -9 ----------- Run | Scr Mat Mat Matter Collected 237 | 230 . 7 Remotely . | . . . Salvage Created 216 | . 37 179 Parts 22 | . 3 19 Haulers Intercepted 1 | . 1 . Recyclers Shooed 2 | . . 2 Parts Field Recycled . | . . . Retrieved Matter . | . . . Parts Self-Destructed . | . . . Prevented . | . . . Kills | -11 -10 -9 ------- Run | Scr Mat Mat Combat Hostiles Destroyed 4 | . . 4 Melee 4 | . . 4 Classes Destroyed 3 | . 1 2 Hauler 1 | . 1 . Grunt 3 | . . 3 Sentry 1 | . . 1 Best Kill Streak 2 | . 1 2 Combat Bots Only 2 | . . 2 Max Kills in Single Turn 1 | . 1 1 Gunslinging . | . . . Exploded . | . . . Melee 1 | . . 1 Uniques/NPCs Destroyed . | . . . Combat | -11 -10 -9 -------- Run | Scr Mat Mat Damage Taken 1240 | . 80 1160 Core 394 | . 17 377 Absorbed by Shields . | . . . Core Remaining (%) 96 | 100 93 . Volleys Fired . | . . . Largest . | . . . Hottest . | . . . Shots Fired . | . . . Gun . | . . . Cannon . | . . . Launcher . | . . . Special . | . . . Kinetic . | . . . Thermal . | . . . Explosive . | . . . Electromagnetic . | . . . Robot Hit Streak . | . . . Robot Miss Streak . | . . . Penetration Max . | . . . Secondary Targets . | . . . Shots Hit Robots . | . . . Core Hits 29 | . 1 28 Critical Hits . | . . . Critical Kills . | . . . Critical Parts Destroyed . | . . . Melee Attacks . | . . . Impact . | . . . Slashing . | . . . Piercing . | . . . Sneak Attacks . | . . . Combat Hostiles . | . . . Follow-up Attacks . | . . . Damage Inflicted 138 | . 5 133 Guns . | . . . Cannons . | . . . Explosions . | . . . Melee . | . . . Ramming 138 | . 5 133 Kinetic . | . . . Thermal . | . . . Explosive . | . . . Electromagnetic . | . . . Impact . | . . . Slashing . | . . . Piercing . | . . . Highest Corruption . | . . . Average Corruption . | . . . Corruption Purged . | . . . Overload Shots . | . . . Overflow Damage . | . . . Projectiles . | . . . Explosions . | . . . Melee . | . . . Knockbacks . | . . . Impact . | . . . Kinetic . | . . . Secondary . | . . . Self-Inflicted Damage 4 | . . 4 Shots . | . . . Rammed 56 | . 2 54 Targets Rammed 59 | . 3 56 Kicked . | . . . Crushed 3 | . 1 2 Highest Temperature . | . . . Average Temperature . | . . . Received Heat Transfer 531 | . . 531 Siege Activations . | . . . Robots Corrupted . | . . . Combat Hostiles . | . . . Parts Fried . | . . . Impact Corruptions . | . . . Robots Melted . | . . . Combat Hostiles . | . . . Parts Melted . | . . . Heat Transferred . | . . . Parts Sabotaged . | . . . Parts Stolen . | . . . Parts Stripped . | . . . Power Chain Reactions . | . . . Missiles Intercepted . | . . . Alert | -11 -10 -9 ------- Run | Scr Mat Mat Peak Influence 90 | . 37 90 Initial 15 | . . 15 Average 38 | . 12 56 Maximum Alert Level . | . . . Low Security (%) 100 | 100 100 100 Level 1 . | . . . Level 2 . | . . . Level 3 . | . . . Level 4 . | . . . Level 5 . | . . . High Security . | . . . Max Security . | . . . Squads Dispatched 1 | . . 1 Investigation . | . . . Extermination . | . . . Reinforcement 1 | . . 1 Assault . | . . . Garrison . | . . . Intercept . | . . . Construction Impeded . | . . . Haulers Reinforced . | . . . Stealth | -11 -10 -9 --------- Run | Scr Mat Mat Distress Signals 3 | . . 3 Communications Jammed . | . . . Distress Signals . | . . . Times Spotted 21 | . 4 17 Peak Tracking Total 8 | . 4 8 Tactical Retreats 1 | . 1 . Traps | -11 -10 -9 ------- Run | Scr Mat Mat Traps Triggered . | . . . Indirectly . | . . . Trap Hack Attempts . | . . . Triggered . | . . . Disarmed . | . . . Reprogrammed . | . . . Reused . | . . . Traps Extracted . | . . . Installed . | . . . Triggered . | . . . Machines | -11 -10 -9 ---------- Run | Scr Mat Mat Machines Disabled . | . . . Max in Single Turn . | . . . Machines Sabotaged . | . . . Garrisons Compromised . | . . . Overloaded Fab Kills . | . . . Fab Network Shutdowns . | . . . Hacking | -11 -10 -9 --------- Run | Scr Mat Mat Machines Accessed 3 | . 1 2 Terminals 3 | . 1 2 Fabricators . | . . . Repair Stations . | . . . Recycling Units . | . . . Scanalyzers . | . . . Garrison Access . | . . . Total Hacks 4 | . 1 3 Successful . | . . . Failed 4 | . 1 3 Catastrophic 2 | . 1 1 Database Lockouts . | . . . Manual 4 | . 1 3 Terminals 4 | . 1 3 Fabricators . | . . . Repair Stations . | . . . Recycling Units . | . . . Scanalyzers . | . . . Garrison Access . | . . . Terminal Hacks . | . . . Fabricator Hacks . | . . . Repair Station Hacks . | . . . Recycling Unit Hacks . | . . . Scanalyzer . | . . . Garrison Access Hacks . | . . . Unauthorized Hacks . | . . . Terminals . | . . . Fabricators . | . . . Repair Stations . | . . . Recycling Units . | . . . Scanalyzers . | . . . Garrison Access . | . . . Data Cores Recovered . | . . . Used . | . . . Hacking Detections 3 | . 1 2 Full Trace Events . | . . . Feedback Events . | . . . Feedback Blocked . | . . . Robot Schematics Acquired . | . . . Robots Built . | . . . Matter . | . . . Time . | . . . Total Robot Build Rating . | . . . Part Schematics Acquired . | . . . Parts Built . | . . . Matter . | . . . Time . | . . . Total Part Build Rating . | . . . Parts Repaired . | . . . Time . | . . . Parts Recycled . | . . . Recycled Matter . | . . . Retrieved Matter . | . . . Retrieved Components . | . . . Parts Scanalyzed . | . . . Part Schematics Acquired . | . . . Parts Damaged . | . . . Bothacking | -11 -10 -9 ------------ Run | Scr Mat Mat Used RIF Installer . | . . . Robots Hacked . | . . . Non-combat . | . . . Combat . | . . . Robot Hacks Applied . | . . . Relay Couplers Released . | . . . Robots Rewired . | . . . Allies Hacked . | . . . Hacks Repelled . | . . . Allies | -11 -10 -9 -------- Run | Scr Mat Mat Total Allies . | . . . Largest Group . | . . . Highest-Rated Group . | . . . Highest-Rated Ally . | . . . Total Orders . | . . . Ally Attacks . | . . . Total Damage . | . . . Kills . | . . . Allies Corrupted . | . . . Allies Melted . | . . . Intel | -11 -10 -9 ------- Run | Scr Mat Mat Robot Analysis Total . | . . . Derelict Logs Recovered . | . . . Drone Launches . | . . . Drone Recoveries . | . . . Exploration | -11 -10 -9 ------------- Run | Scr Mat Mat Turns Passed 318 | 60 55 203 Spaces Moved 230 | 36 89 105 Core 137 | 2 85 50 Treads 66 | 34 4 28 Legs 27 | . . 27 Wheels . | . . . Hover . | . . . Flight . | . . . Fastest Speed 50 | 50 50 50 Average Speed 90 | 153 54 99 Slowest Speed 160 | 160 160 160 Overloaded Moves . | . . . Propulsion Burnouts . | . . . Robots Hopped . | . . . Cave-ins Triggered . | . . . Exploration Rate (%) 17 | 4 25 24 Regions Visited 2 Branch Regions . Pre-discovered Areas . | . . . Known Exits Taken . | . . . Unknown Exits Taken 2 | 1 1 . Scrap Searched . | . . . Spaces Dug . | . . . Terrain Destroyed . | . . . Melee . | . . . Projectile . | . . . AOE . | . . . Terrain Rammed . | . . . Walls Destroyed . | . . . Machines Disabled . | . . . Actions | -11 -10 -9 --------- Run | Scr Mat Mat Total 301 | 39 92 170 Wait . | . . . Move 228 | 35 88 105 Hop . | . . . Pick Up 5 | 1 1 3 Fast Attach 4 | 3 . 1 Attach 5 | . . 5 Detach . | . . . Swap . | . . . Drop . | . . . Fire . | . . . Melee . | . . . Ram . | . . . Kick 3 | . . 3 Crush 56 | . 3 53 Escape Stasis . | . . . Rewire . | . . . Trap . | . . . Miscellaneous . | . . . Route ------- -11/Scrapyard -10/Materials -9/Materials History --------- Turn | Location | Event 6 | -11/Scrapyard | Discovered new exit (range 15) 61 | -11/Scrapyard | Entered Materials 111 | -10/Materials | Discovered new exit (range 9) 116 | -10/Materials | Entered another Materials area 116 | -9/Materials | Evolved 2 slots: Utility x2 265 | -9/Materials | Core integrity fell below 50% 300 | -9/Materials | Core integrity fell below 20% 310 | -9/Materials | Lost 4 parts (3n1u) 313 | -9/Materials | Build established: Mutant 319 | -9/Materials | Self-destructed Last Messages --------------- 00277_ Acquired Aluminum Leg. 00277_ K-01 Serf collects debris. 00278_ Acquired 2 matter. 00279_ Lgt. Treads destroyed. 00279_ K-01 Serf collects debris. 00284_ U-05 Engineer lays Concrete. 00289_ Connecting with Terminal... 00293_ Slammed into G-34 Mercenary. 00298_ K-01 Serf collects debris. 00300_ R-06 Scavenger collects Heat Sink. 00302_ K-01 Serf collects debris. 00305_ R-06 Scavenger collects Sml. Laser. 00306_ K-01 Serf collects debris. 00310_ T-07 Excavator is excavating. 00312_ K-01 Serf collects debris. 00312_ S-10 Pest suffers critical hit. 00312_ S-10 Pest destroyed. 00314_ T-07 Excavator is excavating. 00318_ Aluminum Leg destroyed. 00318_ T-07 Excavator is excavating. Map ----- +----------------------------------------------------+ | ????????????????????????#%% ## """ #?????????????? | | ????????????????????????# %%## #?????????????? | | ????????????????????????#%%%## " #?????????????? | | ????????????????????????#% %## T #?????????????? | | ????????????????????????#*%%## " #?????????????? | | ????????????????????????#%%%## #?????????????? | | ????????????????????????#%%=####+######??????????? | | ??????????????????####??#%%%% #??????????? | | ??????????????????# ??#%%^ % #??????????? | | ??????????????????# ?#% T #??????????? | | ??????????????????# """?#![ #??????????? | | ??????????????????# """ #* #??????????? | | ??????????????????# """ # #??????????? | | ??????????????????# + ^ #??????????? | | ??????????????????# """ # g g #??????????? | | ??????????????????# """ ## #??????????? | | ??????????????????# """??#w = #??????????? | | ??????????????????# ??#^ % #??????????? | | ??????????????????# ???# s #??????????? | | ??????????????????# ???#^ """ " #??????????? | | ??????????????????#####??#ss""" "" #??????????? | | ??????????????????#= ## """ "" #??????????? | | ??????????????????# # k """ #??????????? | | ??????????????????# + "" ???????????? | | ??????????????????# """ # """ ????????????? | | ??????????????????# """ #@ """?????????????? | | ??????????????????# """?# """?????????????? | | ??????????????????# ?# ! " ???????????? | | ??????????????????# ""??# ???????????? | | ??????????????????# ""??# #??????????? | | ??????????????????# "???# ####t## #??????????? | | ????????????????????????# #??? # #??????????? | | ????????????????????????# #????##? #??????????? | | ????????????????????????# #????????????????????? | | ????????????????????????# #????????????????????? | | ???????????????????????? ????????????????????? | | ????????????????????????? Y ????????????????????? | | ????????????????????????? ????????????????????? | | ????????????????????????? ????????????????????? | | ????????????????????????? #???????????????????? | | ?????????????????????????#+#?????????????????????? | | ?????????????????????????????????????????????????? | | ?????????????????????????????????????????????????? | | ?????????????????????????????????????????????????? | | ?????????????????????????????????????????????????? | | ?????????????????????????????????????????????????? | | ?????????????????????????????????????????????????? | | ?????????????????????????????????????????????????? | | ?????????????????????????????????????????????????? | | ?????????????????????????????????????????????????? | +----------------------------------------------------+ Best States ------------- Heat Dissipation 28 Energy Generation 10 Energy Capacity 125 Matter Stores 300 Matter Capacity 300 Sight Range 16 Terrain Scan Density 10 Armor Coverage 150 Evasion (%) 50 Recoil Reduction 2 Item Schematics ----------------- None Robot Schematics ------------------ None Fabricated ------------ Nothing Alien Tech Used ----------------- None Achievements -------------- None Challenges ------------ None Game ------ Seed ChargeSwarmDeconstructor Manual? 0 Play Time 00:09:01 Cumulative 119.8 hours Start 2021.06.15 @ 09:50:50 End 2021.06.15 @ 10:11:32 Sessions 1 Manual Loads 0 Difficulty Rogue Special Mode None Game No. 173 Rogue 173 Adventurer 0 Explorer 0 Win Type - Total 5 Types 4/0/0/1/0/0/0/0/0 Lore% 48 Gallery% 71 Achievement% 58 Wizard Run 0 Options --------- ASCII 0 Keyboard 0 Movement Numpad Keybinds 0 Fullscreen 1 Font 18/Terminus Map View 76x50 Tactical HUD 1 Map Filters NONE Filters NONE Steam 1 RUN: 50068c72-7d8f-40d5-8643-d7cdc91eed2c